[Event "4th Tata Steel India Rapid Open 2022"]
[Site "Kolkota"]
[Date "2022.11.30"]
[Round "4.2"]
[White "Erigaisi Arjun"]
[Black "Sethuraman, S.P."]
[Result "0-1"]
[ECO "D00"]
[WhiteElo "2718"]
[BlackElo "2643"]
[Annotator "TA"]
[PlyCount "166"]
[EventDate "2022.11.29"]
[EventType "tourn"]
[EventCountry "IND"]
[SourceTitle "playchess.com"]
[Source "ChessBase"]
[SourceQuality "1"]
[TimeControl "900+10"]

{[%evp 26,166,4,13,32,26,24,22,34,16,24,6,18,-10,0,-15,58,0,14,0,5,-10,0,-2,0,0,0,0,49,4,7,0,0,0,0,-29,-45,-45,-7,-59,-68,-84,-85,-61,-32,-13,-31,-27,-25,-92,-92,-122,-66,-125,-24,-129,-109,-215,-143,-152,-156,-369,-318,-357,-329,-628,-498,-513,-461,-416,-394,-720,-697,-1008,-1011,-992,-1018,-979,-947,-992,-972,-1506,-1526,-1763,-1352,-1762,-1702,-1619,-1638,-2672,-1664,-2027,-1644,-1730,-1670,-2089,-1744,-1812,-1641,-1645,-1612,-1620,-1751,-1699,-1573,-2160,-2042,-1635,-1525,-2510,-2374,-1973,-1445,-1971,-1810,-3431,-3164,-29982,-29983,-29987,-29981,-29981,-29982,-29982,-29983,-29982,-29984,-29984,-29984,-29984,-29985,-29985,-29983,-29983,-29984,-29984,-29985,-29993,-29984,-29997,-29990,-29990,-29991]} 1. d4 {[%emt 0:00:04]} Nf6 {[%emt 0:00:02]} 2. Nc3 {[%emt 0:00:03]} d5 {[%emt 0:00:02]} 3. Bf4 {[%emt 0:00:02]} g6 {[%emt 0:00:01]} 4. e3 {[%emt 0:00:10]} Bg7 {[%emt 0:00:02]} 5. Nb5 {[%emt 0:00:16]} Na6 {[%emt 0:00:02]} 6. h3 {[%emt 0:00:04]} c6 {[%emt 0:00:13]} 7. Nc3 {[%emt 0:00:02]} Nc7 {[%emt 0:00:46]} 8. Nf3 {[%emt 0:00:16]} O-O {[%emt 0:00:12]} 9. Bd3 {[%emt 0:00:12]} c5 {[%emt 0:01:23]} 10. O-O {[%emt 0:00:38]} b6 {[%emt 0:00:52]} 11. a4 {[%emt 0:00:21]} Bb7 {[%emt 0:00:42]} 12. Be5 {[%emt 0:03:00]} Ne4 {[%emt 0:01:11]} 13. Ne2 {[%emt 0:00:02]} Ne6 {[%emt 0:02:28]} 14. c3 {[%emt 0:00:35]} a6 {[%emt 0:01:51]} 15. Bxg7 {[%emt 0:02:08]} Kxg7 {[%emt 0:00:17]} 16. Qb1 {[%emt 0:00:03]} Nd6 {[%emt 0:00:29]} 17. Nd2 {[%emt 0:01:24]} b5 {[%emt 0:01:15]} 18. b3 {[%emt 0:00:39]} Bc6 {[%emt 0:00:17]} 19. Qa2 {[%emt 0:00:47]} Qb6 {[%emt 0:01:06]} 20. Rfc1 {[%emt 0:00:24]} Rfc8 {[%emt 0:02:09]} (20... bxa4 $11 21. bxa4 c4) 21. Rab1 {[%emt 0:01:27]} (21. c4 $1 $14) 21... Qa7 {[%emt 0:01:18]} 22. Qa1 {[%emt 0:00:30]} Kg8 {[%emt 0:00:03]} 23. h4 {[%emt 0:00:31]} Qd7 {[%emt 0:00:30]} 24. Bc2 {[%emt 0:00:35]} cxd4 {[%emt 0:00:26]} 25. cxd4 {[%emt 0:00:13]} b4 {[%emt 0:00:19]} 26. Nf3 {[%emt 0:01:08]} Bb7 {[%emt 0:00:25]} (26... a5 $11 {was preferrable.}) 27. h5 {[%emt 0:00:15]} (27. Ne5 $5 {[%cal Re5d7]} Qe8 28. a5 $11) 27... Qe8 {[%emt 0:00:15]} 28. a5 {[%emt 0:00:34]} Bc6 {[%emt 0:00:09]} 29. Bd3 {[%emt 0:00:27]} Bb5 {[%emt 0:00:02]} 30. Bxb5 {[%emt 0:00:02]} Qxb5 {[%emt 0:00:05]} 31. Qa2 {[%emt 0:00:18]} Nb7 {[%emt 0:00:20]} 32. Ne5 {[%emt 0:01:08]} ({White should play} 32. Ra1 $11) 32... f6 $15 {[%emt 0:00:17]} 33. Ng4 {[%emt 0:00:26]} Qxa5 {[%emt 0:00:12]} 34. Qd2 {[%emt 0:00:05]} Qb5 {[%emt 0:00:04]} (34... gxh5 35. Nh6+ Kh8 36. Nf5 $14) 35. Nf4 {[%emt 0:00:16]} Nxf4 {[%emt 0:00:04]} 36. exf4 {[%emt 0:00:02]} Nd6 {[%emt 0:00:16]} 37. Qe3 {[%emt 0:00:09]} (37. Qe1 $11 Qd7 38. hxg6) 37... Qd7 $17 {[%emt 0:00:31]} (37... gxh5 $2 38. Nh6+ (38. Qxe7 hxg4 39. Qxd6 Qe8 $16) 38... Kh8 39. Qxe7 $18) 38. Qh3 {[%emt 0:00:02]} Nf5 {[%emt 0:00:09]} (38... Kg7 $17 {[%cal Oc8c3]} 39. Re1 Rc3) 39. Re1 {[%emt 0:00:32]} ({Better is} 39. Rc5 $15) 39... Rc3 {[%emt 0:00:05]} (39... Nxd4 $2 40. Nh6+ Kg7 41. Qxd7 $18) ({Black should try} 39... Ra7 $17 {Strongly threatening ...Kg7.} 40. g3 Kg7) 40. g3 {[%emt 0:00:02] [#]} (40. Nh6+ $1 $11 Kg7 41. Nxf5+ gxf5 42. h6+ Kf7 43. Qh5+ Kf8 44. Rb2) 40... Kg7 $1 $17 {[%emt 0:00:13]} (40... Nxd4 $2 {[#]} 41. Nxf6+ $1 {[%mdl 512]} exf6 42. Qxd7 $18) 41. Kg2 {[%emt 0:00:35]} (41. hxg6 $17 hxg6 42. Ne3) 41... Rh8 {[%emt 0:00:41]} 42. Ra1 {[%emt 0:00:30]} Qc8 {[%emt 0:00:09]} 43. Rh1 $2 {[%emt 0:00:24]} (43. Ra2 $17) 43... h6 {[%emt 0:00:07]} (43... Nxd4 $2 44. Ne3 $19) 44. Rae1 {[%emt 0:00:19]} Rxb3 {[%emt 0:00:08]} 45. hxg6 $2 {[%emt 0:00:16]} (45. Re2 e6 46. Nh2) 45... h5 {[%emt 0:00:00]} (45... Qc3 46. Ne3 Nxd4 47. Qd7 Kxg6 48. Qxe7 $18 (48. Nxd5 Qf3+ 49. Kh3 Qh5+ 50. Kg2 Qf3+ 51. Kh3 Qh5+ 52. Kg2 Qf3+ $11) (48. Rc1 Qd3 $16)) 46. Nh2 {[%emt 0:00:08]} Rc3 {[%emt 0:00:11]} 47. Nf3 {[%emt 0:00:09]} Rc7 {[%emt 0:00:06]} (47... Kxg6 $2 48. Nh4+ (48. g4 $2 hxg4 49. Ne5+ fxe5 $19) 48... Nxh4+ 49. Qxh4 $19) 48. Ra1 $2 {[%emt 0:00:18]} (48. Re2 Rc2 49. Rxc2 Qxc2 50. Re1) 48... b3 $19 {[%emt 0:00:07]} 49. Nh4 {[%emt 0:00:20]} Nxh4+ {[%emt 0:00:05]} 50. Qxh4 {[%emt 0:00:02]} b2 {[%emt 0:00:07]} 51. Rab1 {[%emt 0:00:03]} Rb7 {[%emt 0:00:13]} (51... Kxg6 52. Rxb2 a5 53. Rb6 $17) 52. Rhe1 {[%emt 0:00:04]} Qf5 {[%emt 0:00:08]} 53. f3 {[%emt 0:00:22]} Qc2+ {[%emt 0:00:14]} 54. Kg1 {[%emt 0:00:03]} a5 {[%emt 0:00:21]} 55. Qh3 {[%emt 0:00:13]} a4 {[%emt 0:00:19]} 56. Qe6 {[%emt 0:00:05]} Qxg6 {[%emt 0:00:02]} 57. Qxd5 {[%emt 0:00:02]} Rhb8 {[%emt 0:00:12]} 58. Kf2 {[%emt 0:00:21]} a3 {[%emt 0:00:07]} 59. f5 {[%emt 0:00:06]} Qf7 {[%emt 0:00:02]} 60. Re6 {[%emt 0:00:02]} Ra7 {[%emt 0:00:12]} 61. Qa2 {[%emt 0:00:11]} Qe8 {[%emt 0:00:10]} 62. Rbe1 {[%emt 0:00:06]} Qd8 {[%emt 0:00:07]} 63. Kg2 {[%emt 0:00:18]} Kf8 {[%emt 0:00:20]} 64. d5 {[%emt 0:00:03]} Rb6 {[%emt 0:00:13]} 65. R6e4 {[%emt 0:00:14]} Qb8 {[%emt 0:00:16]} 66. Rb1 {[%emt 0:00:04]} Rb4 {[%emt 0:00:07]} 67. Re3 {[%emt 0:00:05]} h4 {[%emt 0:00:15]} 68. f4 {[%emt 0:00:07]} Rba4 {[%emt 0:00:02]} 69. Rh1 {[%emt 0:00:14]} Rb7 {[%emt 0:00:04]} 70. d6 {[%emt 0:00:08]} Qxd6 {[%emt 0:00:08]} (70... b1=B 71. Rxb1 Qxd6 72. Rxb7 $11) 71. Rxh4 {[%emt 0:00:05]} Qc6+ {[%emt 0:00:01]} (71... b1=R 72. Rh8+ Kg7 73. Qg8#) 72. Kf2 {[%emt 0:00:42]} Qc2+ {[%emt 0:00:07]} (72... b1=R 73. Rh8+ Kg7 74. Qg8#) 73. Kf3 {[%emt 0:00:06]} Qc4 {[%emt 0:00:08]} (73... b1=N 74. Rh8+ Kg7 75. Qg8#) 74. Qb1 {[%emt 0:00:02]} Qd5+ {[%emt 0:00:17]} 75. Kf2 {[%emt 0:00:14]} a2 {[%emt 0:00:06]} 76. Qc2 {[%emt 0:00:18]} Rc4 (76... b1=R 77. Qc8+) 77. Qe2 {[%emt 0:00:00]} b1=Q {[%emt 0:00:39]} 78. Rh8+ {[%emt 0:00:05]} Qg8 {[%emt 0:00:16]} 79. Rxg8+ {[%emt 0:00:04]} Kxg8 {[%emt 0:00:02]} 80. Qxc4+ {[%emt 0:00:04]} Kg7 {[%emt 0:00:02]} 81. Qc5 {[%emt 0:00:18]} Rb2+ {[%emt 0:00:06]} (81... a1=B 82. Rxe7+ Kh6 83. Rxb7 Qxb7 84. g4 $15) 82. Kf3 {[%emt 0:00:02]} Qd1+ {[%emt 0:00:18]} 83. Ke4 {[%emt 0:00:02]} Rb7 {[%emt 0:00:19]} ({Stronger than} 83... a1=B 84. Qxe7+ Kg8 85. Qe8+ (85. Qxf6 {gets mated.} Rb4+) 85... Kg7 86. Qg6+ Kh8 87. Qh6+ (87. Qxf6+ Kg8 $11) 87... Kg8 88. Qg6+ (88. Qxf6 Rb4+) 88... Kh8 89. Qh6+ (89. Qxf6+ Kg8 $11) 89... Kg8 90. Qg6+ (90. Qxf6 Rb4+) 90... Kh8 $11) 0-1

[Event "4th Tata Steel India Rapid Open 2022"]
[Site "Kolkota"]
[Date "2022.11.30"]
[Round "4.3"]
[White "Nakamura, Hikaru"]
[Black "Mamedyarov, Shakhriyar"]
[Result "1-0"]
[ECO "A30"]
[WhiteElo "2768"]
[BlackElo "2741"]
[Annotator "TA"]
[PlyCount "93"]
[EventDate "2022.11.29"]
[EventType "tourn"]
[EventCountry "IND"]
[SourceTitle "playchess.com"]
[Source "ChessBase"]
[SourceQuality "1"]
[TimeControl "900+10"]

{[%evp 13,93,7,8,-9,0,0,6,-18,-23,-16,-20,-16,-31,-16,-16,-15,0,0,0,0,0,0,0,0,51,42,57,42,36,19,18,20,61,60,45,17,55,62,66,87,79,43,42,36,37,18,33,18,87,75,73,77,129,123,93,115,183,177,159,147,186,178,195,177,225,207,212,193,302,319,295,260,250,210,308,322,325,289,327,305,289,271]} 1. Nf3 {[%emt 0:00:01]} Nf6 {[%emt 0:00:11]} 2. e3 {[%emt 0:00:05]} g6 {[%emt 0:00:14]} 3. b3 {[%emt 0:00:28]} Bg7 {[%emt 0:00:02]} 4. Bb2 {[%emt 0:00:01]} c5 {[%emt 0:00:18]} 5. c4 {[%emt 0:00:49]} O-O {[%emt 0:00:02]} 6. Be2 {[%emt 0:00:01]} b6 {[%emt 0:00:18]} 7. O-O {[%emt 0:00:18]} Bb7 {[%emt 0:00:01]} 8. Qc2 {[%emt 0:00:14] A30: Symmetrical English: Double Fianchetto and Hedgehog.} Nc6 {[%emt 0:00:21][%cal Bb8c6,Bc6b4,Bb4d3][%mdl 32]} 9. Rd1 $5 {[%emt 0:00:30][%mdl 4] Leaves trodden paths.} d5 {[%emt 0:00:25]} 10. cxd5 {[%emt 0:00:33] The position is equal.} Nb4 {[%emt 0:02:20]} 11. Qc1 {[%emt 0:00:01] [#]} Qxd5 $146 {[%emt 0:00:01]} ({Predecessor:} 11... Rc8 12. Nc3 Nbxd5 13. a3 a6 14. d3 Qd7 15. Na4 Qd6 16. e4 Nf4 17. Bf1 Nd7 18. Bxg7 Kxg7 {0-1 (42) Gronn,A (2409)-Tjoelsen,K (2225) Oslo 2011}) 12. Nc3 {[%emt 0:01:32]} Qf5 {[%emt 0:00:02]} 13. d4 {[%emt 0:00:42][%cal Bd2d4,Bd4c5][%mdl 32]} Rac8 {[%emt 0:00:19]} 14. dxc5 {[%emt 0:01:26]} Bxf3 {[%emt 0:03:30]} (14... Qxc5 {simplifies} 15. Rd2 Nbd5 16. Nxd5 Qxc1+ 17. Rxc1 Rxc1+ 18. Bxc1 Nxd5 19. Bc4 Rc8) 15. Bxf3 {[%emt 0:00:03] Threatens to win with cxb6.} Nd3 $1 {[%emt 0:00:01]} 16. e4 {[%emt 0:04:00]} Qxf3 {[%emt 0:00:06]} 17. gxf3 {[%emt 0:00:00]} Nxc1 {[%emt 0:00:02]} 18. Raxc1 {[%emt 0:00:01] [#] aiming for e5.} Rxc5 {[%emt 0:00:10]} (18... Bh6 $1 $11 19. Rb1 Rxc5) 19. Ba3 $14 {[%emt 0:00:05][%cal Bb2a3,Ba3b4,Bb4d2,Bd2c3][%mdl 32]} Rg5+ {[%emt 0:00:12]} 20. Kf1 {[%emt 0:00:57]} (20. Kh1 $5 {[%cal Ra3e7]}) 20... Re8 {[%emt 0:00:03]} 21. Rc2 {[%emt 0:00:31]} (21. Na4 $5 {[%cal Rc1c7]}) 21... Rh5 {[%emt 0:01:53]} 22. Kg1 {[%emt 0:00:07]} Bf8 {[%emt 0:01:00]} 23. Ne2 {[%emt 0:00:10]} Ra5 {[%emt 0:00:42]} 24. Bb4 {[%emt 0:00:29]} Rb5 {[%emt 0:00:15]} 25. Bd2 {[%emt 0:00:02]} Rc5 {[%emt 0:02:02]} 26. Rxc5 {[%emt 0:00:40]} bxc5 {[%emt 0:00:01]} 27. Bc3 {[%emt 0:00:12]} Rc8 {[%emt 0:00:23]} 28. e5 {[%emt 0:01:07]} Ne8 {[%emt 0:00:32]} 29. Rd7 {[%emt 0:00:02]} a6 {[%emt 0:01:27]} 30. Ra7 {[%emt 0:00:03]} Rc6 {[%emt 0:00:29] [#]} (30... Nc7 $11 {remains equal.}) 31. Ra8 $1 $16 {[%emt 0:00:14]} Ng7 {[%emt 0:00:01]} 32. Nf4 $36 {[%emt 0:00:09][%mdl 2048] White is in control.} e6 {[%emt 0:01:03]} (32... Nf5 $142) 33. Ng2 {[%emt 0:00:05] White is much more active.} Nf5 {[%emt 0:00:22]} 34. Ne3 {[%emt 0:00:02]} Nxe3 {[%emt 0:00:54]} (34... Kg7 $16) 35. fxe3 {[%emt 0:00:01][%mdl 4096] Endgame KRB-KRB} Kg7 {[%emt 0:00:00]} 36. Kf2 {[%emt 0:00:15]} c4 {[%emt 0:00:45] Strongly threatening ...cxb3.} 37. b4 {[%emt 0:00:08]} Be7 {[%emt 0:00:03]} 38. Ke2 {[%emt 0:00:48]} h5 {[%emt 0:00:02]} (38... g5 $142 39. Ra7 Bd8) 39. Rb8 $18 {[%emt 0:00:30]} g5 {[%emt 0:00:35]} 40. h3 {[%emt 0:00:09] Prevents g4.} Kg6 {[%emt 0:00:07]} (40... Rc7 $142 41. Rb6 Ra7) 41. a4 {[%emt 0:00:07][%cal Ba2a4,Ba4a5][%mdl 32]} Rc7 {[%emt 0:00:19]} 42. Rb6 {[%emt 0:00:12]} Rd7 {[%emt 0:00:04]} ({Weaker is} 42... Ra7 43. Rc6 $16) 43. Rc6 {[%emt 0:00:01]} ({Don't play} 43. Rxa6 $6 Rd3 44. Ra7 Bf8) 43... Kf5 {[%emt 0:00:11]} (43... Rb7 {might work better.}) 44. Rxc4 {[%emt 0:00:11] White has a decisive advantage.} ({Not} 44. Rxa6 Rd3 45. Ra7 Rxc3 $16) 44... Rb7 {[%emt 0:00:01]} 45. Kd3 {[%emt 0:00:13]} Bf8 {[%emt 0:00:03]} 46. a5 {[%emt 0:01:02]} Be7 {[%emt 0:00:05]} 47. Kc2 {[%emt 0:00:09] Weighted Error Value: White=0.05 (flawless) /Black=0.19 (very precise)} 1-0

[Event "4th Tata Steel India Rapid Open 2022"]
[Site "Kolkota"]
[Date "2022.11.30"]
[Round "4.4"]
[White "Nihal Sarin"]
[Black "Gukesh D"]
[Result "1-0"]
[ECO "A30"]
[WhiteElo "2670"]
[BlackElo "2725"]
[Annotator "TA"]
[PlyCount "99"]
[EventDate "2022.11.29"]
[EventType "tourn"]
[EventCountry "IND"]
[SourceTitle "playchess.com"]
[Source "ChessBase"]
[SourceQuality "1"]
[TimeControl "900+10"]

{[%evp 9,99,0,0,-12,-13,-8,-8,-17,-16,-12,0,0,0,-18,-27,-7,-5,-45,0,0,8,-34,0,-29,8,11,10,15,48,56,47,59,34,31,59,61,67,45,87,86,90,70,100,91,132,130,117,11,1,8,4,6,8,8,8,8,8,8,8,8,8,8,92,92,92,91,91,85,85,85,91,87,120,92,92,77,76,76,69,65,104,17,25,15,42,18,29955,11409,29982,29983,29983,29983]} 1. c4 {[%emt 0:00:02]} c5 {[%emt 0:00:03]} 2. Nf3 {[%emt 0:00:10]} Nc6 {[%emt 0:00:04]} 3. b3 {[%emt 0:00:51]} e5 {[%emt 0:00:46]} 4. Bb2 {[%emt 0:00:02]} d6 {[%emt 0:00:25]} 5. g3 {[%emt 0:00:15]} g6 {[%emt 0:01:14]} 6. Bg2 {[%emt 0:00:06] A30: Symmetrical English: Double Fianchetto and Hedgehog.} Bg7 {[%emt 0:00:02]} 7. O-O {[%emt 0:00:03]} Nge7 {[%emt 0:00:02]} 8. d3 {[%emt 0:00:13] The position is equal.} O-O {[%emt 0:00:04][%cal Oe5e4]} 9. Nc3 {[%emt 0:00:02] Prevents e4.} h6 {[%emt 0:00:12]} 10. a3 {[%emt 0:02:38]} Be6 {[%emt 0:00:10]} 11. b4 {[%emt 0:00:08]} cxb4 {[%emt 0:00:57]} 12. axb4 {[%emt 0:00:01]} Nxb4 {[%emt 0:00:32]} 13. Nd2 {[%emt 0:00:01]} Qd7 {[%emt 0:02:21] [#]} (13... a5 {is interesting.} 14. Nb3 e4 15. Bxe4 d5) 14. Qa4 $146 {[%emt 0:01:23]} ({Predecessor:} 14. Ba3 a5 15. Rb1 e4 16. Na4 Ra6 17. Nxe4 b5 18. cxb5 Qxb5 19. Bb2 Ned5 20. Bxg7 Kxg7 {½-½ (56) Kramnik,V (2800)-Gelfand,B (2695) Moscow 2018}) 14... Nbc6 {[%emt 0:00:56]} 15. Ba3 {[%emt 0:00:51]} Rfd8 {[%emt 0:01:17]} (15... a6 {feels hotter.} 16. Nd5 b5 17. Nxe7+ Qxe7 18. cxb5 axb5 19. Qxb5 Nd4) 16. Rab1 {[%emt 0:06:11]} Rab8 {[%emt 0:02:50]} 17. Nde4 {[%emt 0:01:07]} Nc8 {[%emt 0:04:22]} 18. Rfc1 {[%emt 0:01:48]} a6 {[%emt 0:01:20] [#]} 19. Nf6+ $1 {[%emt 0:01:07][%mdl 64]} Bxf6 20. Bxc6 {[%emt 0:00:01][%mdl 64] Pin} Qc7 {[%emt 0:00:03]} 21. Bg2 {[%emt 0:00:28]} Qd7 {[%emt 0:00:15]} 22. Qa5 {[%emt 0:00:16]} Re8 {[%emt 0:00:10]} 23. Nd5 {[%emt 0:00:35]} Bxd5 {[%emt 0:00:32]} 24. Qxd5 {[%emt 0:00:13][%cal Rb1b7]} ({Don't take} 24. Bxd5 Bd8 25. Qd2 Bg5 $14) 24... Re7 {[%emt 0:00:18]} 25. Rb3 {[%emt 0:00:31] White has more active pieces. The black rooks are badly placed.} (25. c5 {simplifies} dxc5 26. Qxc5 Qd8 27. Bxb7 Rexb7 28. Rxb7 Rxb7 29. Qxc8 Qxc8 30. Rxc8+ Kg7 31. Bf8+) 25... b5 {[%emt 0:00:10]} 26. Rcb1 {[%emt 0:00:11]} e4 {[%emt 0:00:13]} 27. Bxe4 {[%emt 0:00:06][%cal Rc4b5]} Re5 {[%emt 0:00:02]} 28. Qc6 {[%emt 0:00:01]} (28. Qd4 $16) 28... Qxc6 $11 {[%emt 0:00:03]} 29. Bxc6 {[%emt 0:00:02][%cal Rc4b5]} Rxe2 {[%emt 0:00:05]} 30. cxb5 {[%emt 0:00:22]} axb5 {[%emt 0:00:24]} 31. Rxb5 {[%emt 0:00:14]} Rxb5 {[%emt 0:00:02]} 32. Rxb5 {[%emt 0:00:02] And now Rb8 would win.} Ra2 {[%emt 0:00:21] Threatens to win with ...Ne7.} 33. Bb4 {[%emt 0:00:19]} Ne7 {[%emt 0:00:06]} 34. Be4 {[%emt 0:00:16] This pair of bishops is nice.} Bd4 $1 {[%emt 0:00:13]} 35. Bxd6 {[%emt 0:00:01]} Bxf2+ {[%emt 0:00:12]} (35... f5 $1 $11 36. Bxe7 fxe4) 36. Kf1 $16 {[%emt 0:00:15]} Nf5 {[%emt 0:00:02]} 37. Bxf5 {[%emt 0:00:09]} gxf5 {[%emt 0:00:01]} 38. Rxf5 {[%emt 0:00:05][%mdl 4096] Endgame KRB-KRB} Bd4 {[%emt 0:00:06]} 39. Rd5 {[%emt 0:00:15]} Bb6 {[%emt 0:00:19]} 40. h4 {[%emt 0:00:03]} Be3 {[%emt 0:00:18]} 41. Re5 {[%emt 0:00:12]} Bd4 {[%emt 0:00:22]} 42. Re4 {[%emt 0:00:03]} Bf6 {[%emt 0:00:05]} 43. Bf4 {[%emt 0:00:15]} Kh7 {[%emt 0:00:00]} 44. Rc4 {[%emt 0:00:14]} h5 {[%emt 0:00:12]} 45. d4 {[%emt 0:00:04]} (45. Rc6 $16 Kg7 46. Rd6) 45... Kg6 $11 {[%emt 0:00:15]} 46. d5 {[%emt 0:00:02][%cal Bd4d5,Bd5d6,Bd6d7][%mdl 32] Black must now prevent d6.} Kf5 {[%emt 0:00:06]} 47. d6 {[%emt 0:00:01]} (47. Rc5 $5 {[%cal Rd5d6]}) 47... Be5 $2 {[%emt 0:00:08][%mdl 8192] [#]} (47... Ke6 $2 48. Rc5 $18) (47... Ra5 $11) 48. Rc5 {[%emt 0:00:35]} f6 {[%emt 0:00:05]} 49. d7 {[%emt 0:00:02]} Ra1+ {[%emt 0:00:19]} 50. Bc1 {[%emt 0:00:01] Weighted Error Value: White=0.13 (very precise) /Black=0.37} 1-0